fUST/lending_fUST_20250429
["ID","MTS","AMOUNT","RATE_DAILY","PERIOD"]
[359287479,1745893838320,-738.94406708,0.00019169,2]
[359287480,1745893838331,-738.94406708,0.00019169,2]
[359287481,1745893838341,-738.94406708,0.00019169,2]
[359287482,1745893838350,-500.0,0.00019169,2]
[359287483,1745893838359,-738.94406708,0.00019169,2]
[359287484,1745893838368,-738.94406708,0.00019169,2]
[359287485,1745893838380,-738.94406708,0.00019169,2]
[359287486,1745893838391,-738.94406708,0.00019169,2]
[359287487,1745893838400,-738.94406708,0.00019169,2]
[359287488,1745893838409,-738.94406708,0.00019169,2]
[359287489,1745893838418,-738.94406708,0.00019169,2]
[359287490,1745893838432,-738.94406708,0.00019169,2]
[359287491,1745893838441,-738.94406708,0.00019169,2]
[359287492,1745893838450,-738.94406708,0.00019169,2]
[359287493,1745893838460,-738.94406708,0.00019169,2]
[359287494,1745893838471,-738.94406708,0.00019169,2]
[359287495,1745893838480,-738.94406708,0.00019169,2]
[359287496,1745893838489,-738.94406708,0.00019169,2]
[359287497,1745893838498,-738.94406708,0.00019169,2]
[359287498,1745893838509,-738.94406708,0.00019169,2]
[359287499,1745893838518,-738.94406708,0.00019169,2]
[359287500,1745893838528,-195.28354551,0.00019169,2]
[359287501,1745893838541,-543.66052157,0.00019169,2]
[359287502,1745893838551,-248.53947843,0.00019169,2]
[359287503,1745893838563,-490.40458865,0.00019169,2]
[359287504,1745893838572,-83.66956835,0.00019169,2]
[359287505,1745893838594,-655.27449873,0.00019169,2]
[359287506,1745893838604,-738.94406708,0.00019169,2]
[359287507,1745893838615,-738.94406708,0.00019169,2]
[359287508,1745893838625,-738.94406708,0.00019169,2]
[359287509,1745893838634,-738.94406708,0.00019169,2]
[359287510,1745893838644,-738.94406708,0.00019169,2]
[359287511,1745893838653,-738.94406708,0.00019169,2]
[359287512,1745893838662,-738.94406708,0.00019169,2]
[359287513,1745893838672,-738.94406708,0.00019169,2]
[359287514,1745893838682,-154.6118965,0.00019169,2]
[359287515,1745893838693,-584.33217058,0.00019169,2]
[359287516,1745893838703,-738.94406708,0.00019169,2]
[359287517,1745893838713,-738.94406708,0.00019169,2]
[359287518,1745893838725,-738.94406708,0.00019169,2]
[359287519,1745893838735,-738.94406708,0.00019169,2]
[359287520,1745893838745,-738.94406708,0.00019169,2]
[359287521,1745893838756,-738.94406708,0.00019169,2]
[359287522,1745893838765,-738.94406708,0.00019169,2]
[359287523,1745893838775,-738.94406708,0.00019169,2]
[359287524,1745893838784,-738.94406708,0.00019169,2]
[359287525,1745893838793,-738.94406708,0.00019169,2]
[359287526,1745893838803,-738.94406708,0.00019169,2]
[359287527,1745893838812,-97.28443777,0.00019169,2]
[359287584,1745893840409,-641.65962931,0.00019169,2]
[359287586,1745893840422,-738.94406708,0.00019169,2]
[359287588,1745893840438,-738.94406708,0.00019169,2]
[359287590,1745893840449,-738.94406708,0.00019169,2]
[359287593,1745893840461,-366.17871558,0.00019173,2]
[359287595,1745893840473,-500.0,0.00019173,2]
[359287597,1745893840484,-500.0,0.00019173,2]
[359287599,1745893840497,-500.0,0.00019173,2]
[359287602,1745893840509,-360.5207118,0.00019173,2]
[359287604,1745893840522,-487.79328259,0.00019173,2]
[359287609,1745893840563,-12.20671741,0.00019173,2]
[359287610,1745893840576,-503.30695592,0.00019173,2]
[359287611,1745893840589,-500.0,0.00019173,2]
[359287612,1745893840599,-500.0,0.00019173,2]
[359287613,1745893840610,-500.0,0.00019173,2]
[359287614,1745893840620,-500.0,0.00019173,2]
[359287615,1745893840631,-500.0,0.00019173,2]
[359287616,1745893840644,-500.0,0.00019173,2]
[359287617,1745893840657,-500.0,0.00019173,2]
[359287618,1745893840670,-500.0,0.00019173,2]
[359287619,1745893840682,-502.32050621,0.00019173,2]
[359287620,1745893840692,-377.29312934,0.00019173,2]
[359287621,1745893840703,-500.0,0.00019173,2]
[359287622,1745893840713,-500.0,0.00019173,2]
[359287623,1745893840725,-323.54648751,0.00019176,2]
[359287624,1745893840736,-500.0,0.00019177,2]
[359287625,1745893840747,-226.59004558,0.00019177,2]
[359287626,1745893840757,-389.14278175,0.00019177,2]
[359287628,1745893840768,-500.0,0.00019177,2]
[359287631,1745893840779,-164.62792359,0.00019177,2]
[359287633,1745893840792,-249.70732317,0.00019178,2]
[359287635,1745893840803,-503.77413453,0.00019178,2]
[359287637,1745893840813,-400.0,0.00019178,2]
[359287639,1745893840824,-400.0,0.00019178,2]
[359287642,1745893840835,-400.0,0.00019178,2]
[359287644,1745893840845,-500.0,0.00019178,2]
[359287646,1745893840856,-400.0,0.00019178,2]
[359287648,1745893840868,-400.0,0.00019178,2]
[359287650,1745893840879,-400.0,0.00019178,2]
[359287652,1745893840890,-301.4275057,0.00019178,2]
[359287654,1745893840900,-400.0,0.00019178,2]
[359287657,1745893840911,-151.0,0.00019178,2]
[359287659,1745893840922,-151.0,0.00019178,2]
[359287661,1745893840932,-400.0,0.00019178,2]
[359287663,1745893840943,-151.0,0.00019178,2]
[359287665,1745893840954,-151.0,0.00019178,2]
[359287667,1745893840964,-151.0,0.00019178,2]
[359287670,1745893840976,-182.7743,0.00019178,2]
[359287672,1745893840989,-400.0,0.00019178,2]
[359287674,1745893840999,-510.56739213,0.00019178,2]
[359287676,1745893841010,-400.0,0.00019178,2]
[359287679,1745893841021,-450.75478896,0.00019178,2]
[359287681,1745893841031,-400.0,0.00019178,2]
[359287683,1745893841042,-400.0,0.00019178,2]
[359287685,1745893841053,-400.0,0.00019178,2]
[359287687,1745893841064,-400.0,0.00019178,2]
[359287689,1745893841075,-400.0,0.00019178,2]
[359287692,1745893841086,-400.0,0.00019178,2]
[359287694,1745893841097,-400.0,0.00019178,2]
[359287696,1745893841107,-999.8,0.00019178,2]
[359287698,1745893841118,-400.0,0.00019178,2]
[359287700,1745893841129,-570.52,0.00019178,2]
[359287702,1745893841142,-400.0,0.00019178,2]
[359287704,1745893841152,-400.0,0.00019178,2]
[359287706,1745893841163,-400.0,0.00019178,2]
[359287709,1745893841174,-754.95,0.00019178,2]
[359287711,1745893841185,-400.0,0.00019178,2]
[359287713,1745893841195,-502.63684257,0.00019178,2]
[359287715,1745893841206,-400.0,0.00019178,2]
[359287717,1745893841216,-400.0,0.00019178,2]
[359287719,1745893841227,-218.34866667,0.00019178,2]
[359287721,1745893841237,-400.0,0.00019178,2]
[359287724,1745893841248,-451.1,0.00019178,2]
[359287726,1745893841259,-400.0,0.00019178,2]
[359287728,1745893841269,-483.07,0.00019178,2]
[359287730,1745893841279,-152.697569,0.00019178,2]
[359287732,1745893841290,-400.0,0.00019178,2]
[359287734,1745893841300,-400.0,0.00019178,2]
[359287736,1745893841312,-400.0,0.00019178,2]
[359287738,1745893841323,-400.0,0.00019178,2]
[359287741,1745893841333,-400.0,0.00019178,2]
[359287743,1745893841343,-400.0,0.00019178,2]
[359287745,1745893841354,-400.0,0.00019178,2]
[359287747,1745893841364,-400.0,0.00019178,2]
[359287749,1745893841376,-400.0,0.00019178,2]
[359287751,1745893841386,-400.0,0.00019178,2]
[359287753,1745893841398,-510.94,0.00019178,2]
[359287755,1745893841408,-267.49231599,0.00019178,2]
[359287757,1745893841419,-400.0,0.00019178,2]
[359287759,1745893841434,-400.0,0.00019178,2]
[359287761,1745893841445,-400.0,0.00019178,2]
[359287763,1745893841456,-400.0,0.00019178,2]
[359287764,1745893841466,-400.0,0.00019178,2]
[359287766,1745893841477,-400.0,0.00019178,2]
[359287768,1745893841488,-501.88415931,0.00019178,2]
[359287770,1745893841499,-400.0,0.00019178,2]
[359287772,1745893841511,-400.0,0.00019178,2]
[359287773,1745893841523,-400.0,0.00019178,2]
[359287774,1745893841533,-852.36,0.00019178,2]
[359287775,1745893841544,-180.226646,0.00019178,2]
[359287776,1745893841555,-400.0,0.00019178,2]
[359287777,1745893841565,-505.44,0.00019178,2]
[359287778,1745893841576,-400.0,0.00019178,2]
[359287779,1745893841587,-507.5,0.00019178,2]
[359287780,1745893841598,-151.0,0.00019178,2]
[359287781,1745893841609,-155.228261,0.00019178,2]
[359287782,1745893841619,-361.74606031,0.00019178,2]
[359287784,1745893841630,-766.67,0.00019178,2]
[359287785,1745893841641,-505.11206779,0.00019178,2]
[359287786,1745893841652,-505.75698735,0.00019178,2]
[359287787,1745893841663,-400.0,0.00019178,2]
[359287788,1745893841674,-497.57060241,0.00019178,2]
[359287789,1745893841684,-400.0,0.00019178,2]
[359287790,1745893841695,-400.0,0.00019178,2]
[359287791,1745893841706,-474.6,0.00019178,2]
[359287792,1745893841717,-400.0,0.00019178,2]
[359287793,1745893841727,-400.0,0.00019178,2]
[359287795,1745893841738,-502.82655069,0.00019178,2]
[359287796,1745893841749,-490.27,0.00019178,2]
[359287797,1745893841760,-409.86215408,0.00019178,2]
[359287798,1745893841771,-203.85290335,0.00019178,2]
[359287799,1745893841783,-151.0,0.00019178,2]
[359287800,1745893841794,-246.517767,0.00019178,2]
[359287801,1745893841805,-481.42,0.00019178,2]
[359287802,1745893841816,-501.35207102,0.00019178,2]
[359287803,1745893841827,-664.47,0.00019178,2]
[359287804,1745893841839,-501.16651614,0.00019178,2]
[359287805,1745893841850,-154.87018138,0.00019178,2]
[359287807,1745893841861,-500.0,0.00019178,2]
[359287808,1745893841873,-151.0,0.00019178,2]
[359287809,1745893841883,-415.76285825,0.00019178,2]
[359287811,1745893841896,-501.03355484,0.00019178,2]
[359287812,1745893841907,-151.0,0.00019178,2]
[359287813,1745893841919,-290.161817,0.00019178,2]
[359287814,1745893841930,-400.0,0.00019178,2]
[359287815,1745893841941,-400.0,0.00019178,2]
[359287816,1745893841951,-548.98,0.00019178,2]
[359287817,1745893841962,-400.0,0.00019178,2]
[359287818,1745893841973,-151.0,0.00019178,2]
[359287819,1745893841983,-151.0,0.00019178,2]
[359287820,1745893841996,-400.0,0.00019178,2]
[359287821,1745893842007,-511.78688261,0.00019178,2]
[359287822,1745893842019,-400.0,0.00019178,2]
[359287823,1745893842030,-151.0,0.00019178,2]
[359287824,1745893842041,-400.0,0.00019178,2]
[359287825,1745893842050,-151.0,0.00019178,2]
[359287826,1745893842060,-400.0,0.00019178,2]
[359287827,1745893842070,-505.93050469,0.00019178,2]
[359287828,1745893842081,-400.0,0.00019178,2]
[359287829,1745893842091,-206.214984,0.00019178,2]
[359287830,1745893842100,-206.214984,0.00019178,2]
[359287831,1745893842110,-206.214984,0.00019178,2]
[359287832,1745893842120,-206.214984,0.00019178,2]
[359287833,1745893842129,-400.0,0.00019178,2]
[359287834,1745893842141,-206.214984,0.00019178,2]
[359287835,1745893842151,-151.0,0.00019178,2]
[359287836,1745893842160,-206.214984,0.00019178,2]
[359287837,1745893842169,-151.0,0.00019178,2]
[359287838,1745893842179,-206.214984,0.00019178,2]
[359287839,1745893842188,-151.0,0.00019178,2]
[359287840,1745893842198,-206.214984,0.00019178,2]
[359287841,1745893842207,-151.0,0.00019178,2]
[359287842,1745893842216,-151.0,0.00019178,2]
[359287845,1745893842490,-151.0,0.00019178,2]
[359287847,1745893842509,-206.214984,0.00019178,2]
[359287848,1745893842524,-151.0,0.00019178,2]
[359287849,1745893842534,-167.491952,0.00019178,2]
[359287850,1745893842543,-206.214984,0.00019178,2]
[359287851,1745893842552,-206.214984,0.00019178,2]
[359287852,1745893842561,-206.214984,0.00019178,2]
[359287853,1745893842570,-206.214984,0.00019178,2]
[359287855,1745893842580,-206.214984,0.00019178,2]
[359287856,1745893842590,-206.214984,0.00019178,2]
[359287858,1745893842599,-206.214984,0.00019178,2]
[359287860,1745893842608,-400.0,0.00019178,2]
[359287862,1745893842617,-151.774952,0.00019178,2]
[359287863,1745893842627,-151.0,0.00019178,2]
[359287864,1745893842636,-151.0,0.00019178,2]
[359287865,1745893842645,-400.0,0.00019178,2]
[359287866,1745893842655,-172.652221,0.00019178,2]
[359287867,1745893842663,-151.0,0.00019178,2]
[359287868,1745893842673,-151.0,0.00019178,2]
[359287869,1745893842681,-523.01129114,0.00019178,2]
[359287870,1745893842690,-400.0,0.00019178,2]
[359287871,1745893842699,-169.862613,0.00019178,2]
[359287872,1745893842708,-470.55,0.00019178,2]
[359287873,1745893842718,-715.13,0.00019178,2]
[359287874,1745893842727,-444.93,0.00019178,2]
[359287875,1745893842736,-400.0,0.00019178,2]
[359287876,1745893842745,-151.0,0.00019178,2]
[359287877,1745893842755,-151.0,0.00019178,2]
[359287878,1745893842764,-439.16,0.00019178,2]
[359287879,1745893842773,-151.0,0.00019178,2]
[359287880,1745893842783,-400.0,0.00019178,2]
[359287881,1745893842792,-151.0,0.00019178,2]
[359287882,1745893842801,-156.041306,0.00019178,2]
[359287883,1745893842810,-500.51978694,0.00019178,2]
[359287884,1745893842819,-400.0,0.00019178,2]
[359287885,1745893842828,-400.0,0.00019178,2]
[359287886,1745893842837,-313.538249,0.00019178,2]
[359287887,1745893842847,-400.0,0.00019178,2]
[359287888,1745893842858,-792.22,0.00019178,2]
[359287889,1745893842867,-761.35,0.00019178,2]
[359287890,1745893842877,-400.0,0.00019178,2]
[359287891,1745893842887,-400.0,0.00019178,2]
[359287892,1745893842897,-302.96047277,0.00019178,2]
[359287893,1745893842906,-151.0,0.00019178,2]
[359287894,1745893842916,-151.0,0.00019178,2]
[359287895,1745893842926,-151.0,0.00019178,2]
[359287896,1745893842936,-151.0,0.00019178,2]
[359287897,1745893842945,-400.0,0.00019178,2]
[359287899,1745893842955,-151.0,0.00019178,2]
[359287901,1745893842964,-297.185975,0.00019178,2]
[359287902,1745893842973,-400.0,0.00019178,2]
[359287903,1745893842983,-400.0,0.00019178,2]
[359287904,1745893842993,-400.0,0.00019178,2]
[359287906,1745893843002,-400.0,0.00019178,2]
[359287907,1745893843012,-503.62331881,0.00019178,2]
[359287908,1745893843021,-400.0,0.00019178,2]
[359287909,1745893843031,-400.0,0.00019178,2]
[359287910,1745893843041,-642.02,0.00019178,2]
[359287911,1745893843052,-400.0,0.00019178,2]
[359287912,1745893843062,-400.0,0.00019178,2]
[359287913,1745893843071,-640.95,0.00019178,2]
[359287914,1745893843080,-400.0,0.00019178,2]
[359287915,1745893843090,-400.0,0.00019178,2]
[359287916,1745893843100,-400.0,0.00019178,2]
[359287917,1745893843108,-400.0,0.00019178,2]
[359287918,1745893843117,-1542.78,0.00019178,2]
[359287919,1745893843126,-942.27,0.00019178,2]
[359287921,1745893843135,-400.0,0.00019178,2]
[359287922,1745893843145,-400.0,0.00019178,2]
[359287923,1745893843154,-400.0,0.00019178,2]
[359287924,1745893843163,-438.54,0.00019178,2]
[359287925,1745893843172,-151.0,0.00019178,2]
[359287926,1745893843181,-386.44175096,0.00019178,2]
[359287927,1745893843190,-151.0,0.00019178,2]
[359287928,1745893843199,-151.0,0.00019178,2]
[359287929,1745893843208,-152.892583,0.00019178,2]
[359287930,1745893843218,-400.0,0.00019178,2]
[359287931,1745893843226,-400.0,0.00019178,2]
[359287932,1745893843235,-400.0,0.00019178,2]
[359287933,1745893843244,-151.0,0.00019178,2]
[359287934,1745893843253,-152.160555,0.00019178,2]
[359287936,1745893843262,-400.0,0.00019178,2]
[359287937,1745893843272,-492.27,0.00019178,2]
[359287938,1745893843281,-400.0,0.00019178,2]
[359287939,1745893843290,-604.26,0.00019178,2]
[359287940,1745893843299,-400.0,0.00019178,2]
[359287941,1745893843309,-400.0,0.00019178,2]
[359287942,1745893843318,-400.0,0.00019178,2]
[359287943,1745893843327,-502.52622688,0.00019178,2]
[359287945,1745893843337,-400.0,0.00019178,2]
[359287947,1745893843346,-400.0,0.00019178,2]
[359287949,1745893843355,-400.0,0.00019178,2]
[359287950,1745893843364,-400.0,0.00019178,2]
[359287951,1745893843375,-400.0,0.00019178,2]
[359287952,1745893843384,-400.0,0.00019178,2]
[359287953,1745893843395,-400.0,0.00019178,2]
[359287954,1745893843404,-400.0,0.00019178,2]
[359287955,1745893843414,-400.0,0.00019178,2]
[359287956,1745893843424,-431.99,0.00019178,2]
[359287957,1745893843436,-400.0,0.00019178,2]
[359287958,1745893843445,-151.0,0.00019178,2]
[359287959,1745893843455,-233.971443,0.00019178,2]
[359287960,1745893843464,-400.0,0.00019178,2]
[359287961,1745893843475,-151.0,0.00019178,2]
[359287962,1745893843484,-151.0,0.00019178,2]
[359287963,1745893843494,-256.3454,0.00019178,2]
[359287964,1745893843503,-400.0,0.00019178,2]
[359287965,1745893843513,-151.951005,0.00019178,2]
[359287966,1745893843522,-400.0,0.00019178,2]
[359287967,1745893843531,-400.0,0.00019178,2]
[359287968,1745893843540,-400.0,0.00019178,2]
[359287969,1745893843550,-400.0,0.00019178,2]
[359287970,1745893843559,-400.0,0.00019178,2]
[359287971,1745893843568,-501.56646715,0.00019178,2]
[359287972,1745893843577,-400.0,0.00019178,2]
[359287973,1745893843587,-512.5703307,0.00019178,2]
[359287974,1745893843596,-400.0,0.00019178,2]
[359287975,1745893843606,-400.0,0.00019178,2]
[359287976,1745893843615,-151.0,0.00019178,2]
[359287977,1745893843624,-400.0,0.00019178,2]
[359287978,1745893843633,-1238.55,0.00019178,2]
[359287979,1745893843642,-400.0,0.00019178,2]
[359287980,1745893843651,-400.0,0.00019178,2]
[359287981,1745893843661,-400.0,0.00019178,2]
[359287982,1745893843669,-400.0,0.00019178,2]
[359287983,1745893843679,-400.0,0.00019178,2]
[359287985,1745893843688,-400.0,0.00019178,2]
[359287986,1745893843697,-400.0,0.00019178,2]
[359287987,1745893843707,-400.0,0.00019178,2]
[359287988,1745893843716,-239.15197528,0.00019178,2]
[359287989,1745893843725,-400.0,0.00019178,2]
[359287990,1745893843735,-304.46707557,0.00019178,2]
[359287991,1745893843745,-400.0,0.00019178,2]
[359287992,1745893843754,-151.0,0.00019178,2]
[359287993,1745893843763,-151.0,0.00019178,2]
[359287994,1745893843773,-151.0,0.00019178,2]
[359287995,1745893843783,-151.0,0.00019178,2]
[359287996,1745893843792,-151.0,0.00019178,2]
[359287997,1745893843802,-151.0,0.00019178,2]
[359287998,1745893843813,-151.0,0.00019178,2]
[359287999,1745893843823,-400.0,0.00019178,2]
[359288000,1745893843832,-151.0,0.00019178,2]
[359288001,1745893843842,-400.0,0.00019178,2]
[359288002,1745893843851,-151.0,0.00019178,2]
[359288003,1745893843861,-151.0,0.00019178,2]
[359288004,1745893843870,-151.0,0.00019178,2]
[359288005,1745893843880,-151.0,0.00019178,2]
[359288006,1745893843890,-182.518252,0.00019178,2]
[359288007,1745893843899,-506.16376162,0.00019178,2]
[359288008,1745893843908,-521.29,0.00019178,2]
[359288009,1745893843918,-481.59,0.00019178,2]
[359288010,1745893843928,-400.0,0.00019178,2]
[359288011,1745893843938,-400.0,0.00019178,2]
[359288012,1745893843948,-544.85,0.00019178,2]
[359288013,1745893843959,-400.0,0.00019178,2]
[359288014,1745893843968,-400.0,0.00019178,2]
[359288015,1745893843977,-151.0,0.00019178,2]
[359288016,1745893843986,-151.0,0.00019178,2]
[359288017,1745893843995,-400.0,0.00019178,2]
[359288018,1745893844005,-265.67236911,0.00019178,2]
[359288019,1745893844015,-827.55,0.00019178,2]
[359288020,1745893844024,-400.0,0.00019178,2]
[359288021,1745893844033,-151.0,0.00019178,2]
[359288022,1745893844042,-151.0,0.00019178,2]
[359288023,1745893844052,-500.91983071,0.00019178,2]
[359288024,1745893844061,-151.0,0.00019178,2]
[359288025,1745893844070,-400.0,0.00019178,2]
[359288026,1745893844079,-209.109538,0.00019178,2]
[359288027,1745893844088,-502.45332517,0.00019178,2]
[359288028,1745893844097,-400.0,0.00019178,2]
[359288029,1745893844106,-400.0,0.00019178,2]
[359288030,1745893844116,-400.0,0.00019178,2]
[359288031,1745893844125,-877.65,0.00019178,2]
[359288032,1745893844135,-506.61859968,0.00019178,2]
[359288033,1745893844145,-400.0,0.00019178,2]
[359288034,1745893844154,-400.0,0.00019178,2]
[359288035,1745893844163,-514.07001398,0.00019178,2]
[359288036,1745893844172,-402.72251088,0.00019178,2]
[359288037,1745893844181,-203.88834767,0.00019178,2]
[359288038,1745893844190,-400.0,0.00019178,2]
[359288039,1745893844199,-400.0,0.00019178,2]
[359288040,1745893844208,-400.0,0.00019178,2]
[359288041,1745893844217,-405.29,0.00019178,2]
[359288042,1745893844226,-440.25,0.00019178,2]
[359288043,1745893844235,-400.0,0.00019178,2]
[359288044,1745893844244,-583.17,0.00019178,2]
[359288045,1745893844253,-500.0,0.00019178,2]
[359288046,1745893844262,-400.0,0.00019178,2]
[359288047,1745893844271,-501.73633986,0.00019178,2]
[359288048,1745893844281,-400.0,0.00019178,2]
[359288049,1745893844291,-400.0,0.00019178,2]
[359288050,1745893844303,-895.02,0.00019178,2]
[359288051,1745893844314,-400.0,0.00019178,2]
[359288052,1745893844324,-400.0,0.00019178,2]
[359288053,1745893844336,-400.0,0.00019178,2]
[359288054,1745893844347,-400.0,0.00019178,2]
[359288055,1745893844358,-1113.620594,0.00019178,2]
[359288056,1745893844367,-1113.620594,0.00019178,2]
[359288057,1745893844377,-1113.620594,0.00019178,2]
[359288059,1745893844387,-1113.620594,0.00019178,2]
[359288060,1745893844397,-1113.620594,0.00019178,2]
[359288061,1745893844406,-1113.620594,0.00019178,2]
[359288062,1745893844416,-1113.620594,0.00019178,2]
[359288063,1745893844428,-1113.620594,0.00019178,2]
[359288064,1745893844441,-1113.620594,0.00019178,2]
[359288065,1745893844451,-1113.620594,0.00019178,2]
[359288066,1745893844460,-1113.620594,0.00019178,2]
[359288067,1745893844472,-400.0,0.00019178,2]
[359288068,1745893844481,-1113.620594,0.00019178,2]
[359288069,1745893844492,-1113.620594,0.00019178,2]
[359288070,1745893844501,-1113.620594,0.00019178,2]
[359288071,1745893844514,-400.0,0.00019178,2]
[359288072,1745893844523,-1113.620594,0.00019178,2]
[359288073,1745893844533,-400.0,0.00019178,2]
[359288074,1745893844543,-1113.620594,0.00019178,2]
[359288075,1745893844552,-1113.620594,0.00019178,2]
[359288076,1745893844562,-1113.620594,0.00019178,2]
[359288077,1745893844571,-683.86,0.00019178,2]
[359288078,1745893844581,-1113.620594,0.00019178,2]
[359288079,1745893844591,-400.0,0.00019178,2]
[359288080,1745893844600,-1113.62060371,0.00019178,2]
[359288081,1745893844610,-400.0,0.00019178,2]
[359288082,1745893844620,-400.0,0.00019178,2]
[359288083,1745893844630,-400.0,0.00019178,2]
[359288084,1745893844642,-400.0,0.00019178,2]
[359288085,1745893844652,-400.0,0.00019178,2]
[359288086,1745893844662,-400.0,0.00019178,2]
[359288087,1745893844673,-500.0,0.00019178,2]
[359288088,1745893844684,-400.0,0.00019178,2]
[359288089,1745893844693,-400.0,0.00019178,2]
[359288090,1745893844703,-552.13,0.00019178,2]
[359288091,1745893844712,-400.0,0.00019178,2]
[359288092,1745893844724,-415.75,0.00019178,2]
[359288093,1745893844735,-400.0,0.00019178,2]
[359288094,1745893844747,-500.0,0.00019178,2]
[359288095,1745893844757,-574.29945885,0.00019178,2]
[359288096,1745893844768,-2630.2,0.00019178,2]
[359288097,1745893844778,-400.0,0.00019178,2]
[359288098,1745893844787,-152.328613,0.00019178,2]
[359288099,1745893844797,-1567.21,0.00019178,2]
[359288100,1745893844806,-400.0,0.00019178,2]
[359288101,1745893844816,-400.0,0.00019178,2]
[359288102,1745893844825,-400.0,0.00019178,2]
[359288103,1745893844834,-1524.08,0.00019178,2]
[359288104,1745893844844,-400.0,0.00019178,2]
[359288105,1745893844854,-400.0,0.00019178,2]
[359288106,1745893844863,-400.0,0.00019178,2]
[359288107,1745893844872,-1146.47,0.00019178,2]
[359288108,1745893844881,-736.91,0.00019178,2]
[359288109,1745893844890,-757.12,0.00019178,2]
[359288110,1745893844899,-400.0,0.00019178,2]
[359288111,1745893844909,-400.0,0.00019178,2]
[359288112,1745893844918,-838.15,0.00019178,2]
[359288113,1745893844927,-151.676103,0.00019178,2]
[359288114,1745893844937,-400.0,0.00019178,2]
[359288115,1745893844946,-1105.27,0.00019178,2]
[359288116,1745893844955,-993.54,0.00019178,2]
[359288117,1745893844964,-409.63,0.00019178,2]
[359288118,1745893844974,-400.0,0.00019178,2]
[359288119,1745893844984,-152.58154403,0.00019178,2]
[359288120,1745893844993,-273.1449706,0.00019178,2]
[359288121,1745893845003,-152.29239743,0.00019178,2]
[359288122,1745893845012,-400.0,0.00019178,2]
[359288123,1745893845022,-910.82,0.00019178,2]
[359288124,1745893845031,-530.04,0.00019178,2]
[359288125,1745893845041,-204.81237136,0.00019178,2]
[359288126,1745893845050,-302.19606017,0.00019178,2]
[359288127,1745893845060,-540.9,0.00019178,2]
[359288128,1745893845069,-400.0,0.00019178,2]
[359288129,1745893845079,-1103.18,0.00019178,2]
[359288130,1745893845088,-400.0,0.00019178,2]
[359288131,1745893845098,-788.7,0.00019178,2]
[359288132,1745893845107,-400.0,0.00019178,2]
[359288133,1745893845117,-1301.02,0.00019178,2]
[359288134,1745893845126,-151.0,0.00019178,2]
[359288135,1745893845135,-151.0,0.00019178,2]
[359288136,1745893845145,-151.0,0.00019178,2]
[359288137,1745893845154,-151.0,0.00019178,2]
[359288138,1745893845164,-151.0,0.00019178,2]
[359288139,1745893845174,-151.0,0.00019178,2]
[359288140,1745893845183,-151.0,0.00019178,2]
[359288141,1745893845192,-151.0,0.00019178,2]
[359288142,1745893845202,-151.0,0.00019178,2]
[359288143,1745893845211,-151.0,0.00019178,2]
[359288144,1745893845221,-1019.03,0.00019178,2]
[359288145,1745893845230,-151.0,0.00019178,2]
[359288146,1745893845239,-151.0,0.00019178,2]
[359288147,1745893845248,-151.0,0.00019178,2]